[Event "Titled Tuesday Blitz September 20 Late 2022"]
[White "Terry, Renato"]
[Black "Preotu, Razvan"]
[WhiteFideId "3803457"]
[BlackFideId "2613280"]
[WhiteElo "2577"]
[BlackElo "2407"]
[Result "1/2-1/2"]
[Round "03"]
[TimeControl "180+1"]
[Date "2022.09.20"]
[WhiteClock "0:00:05"]
[BlackClock "0:00:08"]

1. d4 {[%clk 0:03:00]}  Nf6 {[%clk 0:03:00]} 2. Nf3 {[%clk 0:03:00]}  g6 {[%clk 0:03:00]} 3. Bg5 {[%clk 0:03:00]}  Bg7 {[%clk 0:03:00]} 4. c3 {[%clk 0:03:00]}  O-O {[%clk 0:02:59]} 5. Nbd2 {[%clk 0:03:01]}  d6 {[%clk 0:02:58]} 6. e4 {[%clk 0:03:01]}  c5 {[%clk 0:02:58]} 7. dxc5 {[%clk 0:03:01]}  dxc5 {[%clk 0:02:58]} 8. Bc4 {[%clk 0:03:02]}  Nc6 {[%clk 0:02:56]} 9. Qe2 {[%clk 0:03:02]}  Qc7 {[%clk 0:02:53]} 10. O-O {[%clk 0:03:01]}  Na5 {[%clk 0:02:51]} 11. Bd3 {[%clk 0:02:59]}  h6 {[%clk 0:02:50]} 12. Bh4 {[%clk 0:02:58]}  Nh5 {[%clk 0:02:50]} 13. Qe3 {[%clk 0:02:58]}  c4 {[%clk 0:01:56]} 14. Bc2 {[%clk 0:02:56]}  g5 {[%clk 0:01:48]} 15. Bg3 {[%clk 0:02:55]}  Qb6 {[%clk 0:01:43]} 16. Qxb6 {[%clk 0:02:50]}  axb6 {[%clk 0:01:44]} 17. Be5 {[%clk 0:02:51]}  Bxe5 {[%clk 0:01:23]} 18. Nxe5 {[%clk 0:02:52]}  Be6 {[%clk 0:01:23]} 19. g3 {[%clk 0:02:32]}  Rfd8 {[%clk 0:01:23]} 20. Nef3 {[%clk 0:02:28]}  Nc6 {[%clk 0:01:21]} 21. Rfd1 {[%clk 0:02:24]}  g4 {[%clk 0:01:21]} 22. Nh4 {[%clk 0:02:21]}  Ne5 {[%clk 0:01:20]} 23. a3 {[%clk 0:02:14]}  Rd6 {[%clk 0:01:12]} 24. Nf1 {[%clk 0:02:06]}  Rad8 {[%clk 0:01:12]} 25. Rxd6 {[%clk 0:02:04]}  Rxd6 {[%clk 0:01:13]} 26. Ne3 {[%clk 0:01:52]}  Nf6 {[%clk 0:00:49]} 27. Kf1 {[%clk 0:01:35]}  h5 {[%clk 0:00:34]} 28. Nhg2 {[%clk 0:01:04]}  Nd3 {[%clk 0:00:30]} 29. Bxd3 {[%clk 0:01:04]}  Rxd3 {[%clk 0:00:31]} 30. Nf4 {[%clk 0:00:55]}  Rd8 {[%clk 0:00:19]} 31. Nxe6 {[%clk 0:00:42]}  fxe6 {[%clk 0:00:20]} 32. Nxc4 {[%clk 0:00:42]}  Nxe4 {[%clk 0:00:20]} 33. Re1 {[%clk 0:00:27]}  Nd2+ {[%clk 0:00:18]} 34. Nxd2 {[%clk 0:00:27]}  Rxd2 {[%clk 0:00:19]} 35. Re2 {[%clk 0:00:28]}  Rd1+ {[%clk 0:00:18]} 36. Kg2 {[%clk 0:00:29]}  Kf7 {[%clk 0:00:18]} 37. Re5 {[%clk 0:00:28]}  Rd5 {[%clk 0:00:12]} 38. Re4 {[%clk 0:00:21]}  Rb5 {[%clk 0:00:11]} 39. Re2 {[%clk 0:00:19]}  Kf6 {[%clk 0:00:10]} 40. h3 {[%clk 0:00:20]}  Kf5 {[%clk 0:00:08]} 41. hxg4+ {[%clk 0:00:20]}  hxg4 {[%clk 0:00:08]} 42. f3 {[%clk 0:00:20]}  Rd5 {[%clk 0:00:04]} 43. fxg4+ {[%clk 0:00:21]}  Kxg4 {[%clk 0:00:05]} 44. Re4+ {[%clk 0:00:21]}  Kf5 {[%clk 0:00:05]} 45. Rb4 {[%clk 0:00:22]}  b5 {[%clk 0:00:05]} 46. Kf3 {[%clk 0:00:20]}  e5 {[%clk 0:00:05]} 47. g4+ {[%clk 0:00:20]}  Ke6 {[%clk 0:00:06]} 48. Ke3 {[%clk 0:00:19]}  Kd6 {[%clk 0:00:04]} 49. g5 {[%clk 0:00:19]}  Ke6 {[%clk 0:00:04]} 50. g6 {[%clk 0:00:19]}  Kf6 {[%clk 0:00:04]} 51. Rg4 {[%clk 0:00:19]}  Kg7 {[%clk 0:00:05]} 52. Rg5 {[%clk 0:00:19]}  e6 {[%clk 0:00:04]} 53. Rg1 {[%clk 0:00:13]}  Rd8 {[%clk 0:00:03]} 54. Rg2 {[%clk 0:00:13]}  Rf8 {[%clk 0:00:03]} 55. Rd2 {[%clk 0:00:09]}  Kxg6 {[%clk 0:00:03]} 56. Rd7 {[%clk 0:00:09]}  Rf7 {[%clk 0:00:03]} 57. Rd6 {[%clk 0:00:10]}  Kf5 {[%clk 0:00:03]} 58. Rb6 {[%clk 0:00:10]}  Rh7 {[%clk 0:00:03]} 59. Rxb5 {[%clk 0:00:11]}  Rh3+ {[%clk 0:00:03]} 60. Kf2 {[%clk 0:00:10]}  Kf4 {[%clk 0:00:04]} 61. Rxb7 {[%clk 0:00:10]}  e4 {[%clk 0:00:05]} 62. Rf7+ {[%clk 0:00:09]}  Ke5 {[%clk 0:00:05]} 63. Ke2 {[%clk 0:00:09]}  Rh2+ {[%clk 0:00:05]} 64. Rf2 {[%clk 0:00:09]}  Rh1 {[%clk 0:00:04]} 65. Kd2 {[%clk 0:00:08]}  Rb1 {[%clk 0:00:04]} 66. Kc2 {[%clk 0:00:08]}  Re1 {[%clk 0:00:04]} 67. Rh2 {[%clk 0:00:07]}  e3 {[%clk 0:00:04]} 68. Kd3 {[%clk 0:00:08]}  Kf4 {[%clk 0:00:04]} 69. Rh4+ {[%clk 0:00:07]}  Kg3 {[%clk 0:00:05]} 70. Re4 {[%clk 0:00:07]}  Kf3 {[%clk 0:00:05]} 71. Rxe6 {[%clk 0:00:08]}  Rd1+ {[%clk 0:00:05]} 72. Kc2 {[%clk 0:00:07]}  e2 {[%clk 0:00:06]} 73. Rf6+ {[%clk 0:00:07]}  Ke3 {[%clk 0:00:06]} 74. Re6+ {[%clk 0:00:07]}  Kf3 {[%clk 0:00:07]} 75. Rf6+ {[%clk 0:00:05]}  Ke3 {[%clk 0:00:07]} 76. Re6+ {[%clk 0:00:05]}  Kf3 {[%clk 0:00:08]} 1/2-1/2


[Site "https://www.chess.com"]

[Event "Titled Tuesday Blitz September 20 Late 2022"]
[White "Timmermans, Mark"]
[Black "Brilej, Jaka"]
[WhiteFideId "1026399"]
[BlackFideId "14618818"]
[WhiteElo "2460"]
[BlackElo "2173"]
[Result "1-0"]
[Round "03"]
[TimeControl "180+1"]
[Date "2022.09.20"]
[WhiteClock "0:01:42"]
[BlackClock "0:00:45"]

1. e4 {[%clk 0:03:00]}  e6 {[%clk 0:02:59]} 2. d4 {[%clk 0:03:00]}  d5 {[%clk 0:03:00]} 3. Nd2 {[%clk 0:02:59]}  c5 {[%clk 0:02:59]} 4. exd5 {[%clk 0:02:55]}  Qxd5 {[%clk 0:03:00]} 5. Ngf3 {[%clk 0:02:55]}  cxd4 {[%clk 0:03:00]} 6. Bc4 {[%clk 0:02:56]}  Qd7 {[%clk 0:03:00]} 7. O-O {[%clk 0:02:56]}  Nc6 {[%clk 0:03:00]} 8. Nb3 {[%clk 0:02:56]}  a6 {[%clk 0:02:59]} 9. Nbxd4 {[%clk 0:02:56]}  Nxd4 {[%clk 0:03:00]} 10. Nxd4 {[%clk 0:02:56]}  Qc7 {[%clk 0:03:01]} 11. Qe2 {[%clk 0:02:56]}  Bd6 {[%clk 0:03:00]} 12. Bg5 {[%clk 0:02:53]}  Ne7 {[%clk 0:02:42]} 13. Rad1 {[%clk 0:02:43]}  O-O {[%clk 0:02:24]} 14. Bxe6 {[%clk 0:02:38]}  Bxh2+ {[%clk 0:02:13]} 15. Kh1 {[%clk 0:02:37]}  Ng6 {[%clk 0:01:58]} 16. Bxc8 {[%clk 0:02:33]}  Raxc8 {[%clk 0:01:54]} 17. g3 {[%clk 0:02:29]}  Bxg3 {[%clk 0:01:48]} 18. fxg3 {[%clk 0:02:30]}  Qxg3 {[%clk 0:01:48]} 19. Qg2 {[%clk 0:02:31]}  Qc7 {[%clk 0:01:41]} 20. Rd3 {[%clk 0:02:26]}  h6 {[%clk 0:01:38]} 21. Bc1 {[%clk 0:02:18]}  Rfe8 {[%clk 0:01:28]} 22. Rg3 {[%clk 0:02:12]}  Rcd8 {[%clk 0:01:24]} 23. c3 {[%clk 0:02:09]}  Kh7 {[%clk 0:01:23]} 24. Nf5 {[%clk 0:02:03]}  Re4 {[%clk 0:01:16]} 25. Qxe4 {[%clk 0:02:01]}  Rd7 {[%clk 0:00:57]} 26. Bxh6 {[%clk 0:01:50]}  gxh6 {[%clk 0:00:55]} 27. Rh3 {[%clk 0:01:51]}  Qe5 {[%clk 0:00:42]} 28. Rxh6+ {[%clk 0:01:46]}  Kg8 {[%clk 0:00:43]} 29. Rxg6+ {[%clk 0:01:46]}  fxg6 {[%clk 0:00:41]} 30. Qxe5 {[%clk 0:01:46]}  gxf5 {[%clk 0:00:42]} 31. Qe8+ {[%clk 0:01:46]}  Kg7 {[%clk 0:00:42]} 32. Qxd7+ {[%clk 0:01:47]}  Kg6 {[%clk 0:00:43]} 33. Qxf5+ {[%clk 0:01:45]}  Kg7 {[%clk 0:00:44]} 34. Rg1+ {[%clk 0:01:44]}  Kh6 {[%clk 0:00:45]} 35. Qh3# {[%clk 0:01:42]} 1-0


[Site "https://www.chess.com"]

[Event "Titled Tuesday Blitz September 20 Late 2022"]
[White "Tristan, Leonardo"]
[Black "Xiong, Jeffery"]
[WhiteFideId "113816"]
[BlackFideId "2047640"]
[WhiteElo "2404"]
[BlackElo "2714"]
[Result "0-1"]
[Round "03"]
[TimeControl "180+1"]
[Date "2022.09.20"]
[WhiteClock "0:00:10"]
[BlackClock "0:01:37"]

1. d4 {[%clk 0:03:00]}  Nf6 {[%clk 0:03:00]} 2. Nf3 {[%clk 0:03:01]}  c5 {[%clk 0:02:56]} 3. c3 {[%clk 0:03:01]}  d5 {[%clk 0:02:52]} 4. Bf4 {[%clk 0:03:01]}  Qb6 {[%clk 0:02:51]} 5. Qb3 {[%clk 0:02:59]}  e6 {[%clk 0:02:50]} 6. e3 {[%clk 0:02:58]}  Bd7 {[%clk 0:02:51]} 7. Nbd2 {[%clk 0:02:57]}  Bc6 {[%clk 0:02:51]} 8. h3 {[%clk 0:02:42]}  Nbd7 {[%clk 0:02:52]} 9. Ne5 {[%clk 0:02:40]}  Be7 {[%clk 0:02:52]} 10. Nxc6 {[%clk 0:02:35]}  bxc6 {[%clk 0:02:53]} 11. Be2 {[%clk 0:02:32]}  O-O {[%clk 0:02:53]} 12. O-O {[%clk 0:02:32]}  cxd4 {[%clk 0:02:51]} 13. cxd4 {[%clk 0:02:26]}  c5 {[%clk 0:02:52]} 14. dxc5 {[%clk 0:02:25]}  Nxc5 {[%clk 0:02:52]} 15. Qxb6 {[%clk 0:02:25]}  axb6 {[%clk 0:02:53]} 16. Bb5 {[%clk 0:02:22]}  Rfc8 {[%clk 0:02:39]} 17. Rfc1 {[%clk 0:02:21]}  Ne8 {[%clk 0:02:39]} 18. b4 {[%clk 0:02:12]}  Nb7 {[%clk 0:02:23]} 19. Rxc8 {[%clk 0:01:17]}  Rxc8 {[%clk 0:02:24]} 20. Ba6 {[%clk 0:01:17]}  Rc2 {[%clk 0:02:24]} 21. Bxb7 {[%clk 0:01:18]}  Rxd2 {[%clk 0:02:24]} 22. Rc1 {[%clk 0:01:18]}  g5 {[%clk 0:02:13]} 23. Be5 {[%clk 0:00:54]}  Bf6 {[%clk 0:01:48]} 24. Bxf6 {[%clk 0:00:36]}  Nxf6 {[%clk 0:01:49]} 25. a4 {[%clk 0:00:35]}  Ra2 {[%clk 0:01:50]} 26. Bc6 {[%clk 0:00:32]}  Ne4 {[%clk 0:01:50]} 27. f3 {[%clk 0:00:30]}  Ng3 {[%clk 0:01:51]} 28. Bb5 {[%clk 0:00:22]}  Rb2 {[%clk 0:01:43]} 29. Rc6 {[%clk 0:00:20]}  Rxb4 {[%clk 0:01:43]} 30. Rxb6 {[%clk 0:00:21]}  Ne2+ {[%clk 0:01:43]} 31. Kh2 {[%clk 0:00:12]}  Nc3 {[%clk 0:01:43]} 32. Ra6 {[%clk 0:00:11]}  Nxb5 {[%clk 0:01:43]} 33. Rb6 {[%clk 0:00:11]}  Rxa4 {[%clk 0:01:43]} 34. Rxb5 {[%clk 0:00:11]}  h6 {[%clk 0:01:40]} 35. Kg3 {[%clk 0:00:10]}  Kg7 {[%clk 0:01:40]} 36. Rc5 {[%clk 0:00:10]}  Kf6 {[%clk 0:01:40]} 37. Rb5 {[%clk 0:00:10]}  Rc4 {[%clk 0:01:41]} 38. Ra5 {[%clk 0:00:10]}  Ke5 {[%clk 0:01:41]} 39. Ra7 {[%clk 0:00:10]}  Kf6 {[%clk 0:01:38]} 40. Ra5 {[%clk 0:00:10]}  Rc3 {[%clk 0:01:39]} 41. Kf2 {[%clk 0:00:10]}  Rc2+ {[%clk 0:01:39]} 42. Kg3 {[%clk 0:00:11]}  h5 {[%clk 0:01:39]} 43. h4 {[%clk 0:00:10]}  gxh4+ {[%clk 0:01:39]} 44. Kh3 {[%clk 0:00:10]}  Re2 {[%clk 0:01:39]} 45. Ra3 {[%clk 0:00:11]}  Kg5 {[%clk 0:01:40]} 46. Rb3 {[%clk 0:00:10]}  Re1 {[%clk 0:01:38]} 47. Ra3 {[%clk 0:00:10]}  Rh1# {[%clk 0:01:37]} 0-1


[Site "https://www.chess.com"]

[Event "Titled Tuesday Blitz September 20 Late 2022"]
[White "Aggelis, Nikolaos"]
[Black "Tristan, Leonardo"]
[WhiteFideId "4213220"]
[BlackFideId "113816"]
[WhiteElo "2154"]
[BlackElo "2404"]
[Result "1-0"]
[Round "04"]
[TimeControl "180+1"]
[Date "2022.09.20"]
[WhiteClock "0:00:28"]
[BlackClock "0:00:04"]

1. e4 {[%clk 0:03:00]}  d5 {[%clk 0:03:00]} 2. exd5 {[%clk 0:02:59]}  Qxd5 {[%clk 0:03:01]} 3. Nc3 {[%clk 0:02:59]}  Qa5 {[%clk 0:03:01]} 4. Bc4 {[%clk 0:02:59]}  Nf6 {[%clk 0:03:01]} 5. d3 {[%clk 0:02:59]}  Bg4 {[%clk 0:03:01]} 6. Ne2 {[%clk 0:02:54]}  Nbd7 {[%clk 0:02:42]} 7. O-O {[%clk 0:02:54]}  e6 {[%clk 0:02:42]} 8. Bf4 {[%clk 0:02:51]}  Bd6 {[%clk 0:02:41]} 9. Bxd6 {[%clk 0:02:46]}  cxd6 {[%clk 0:02:42]} 10. Qd2 {[%clk 0:02:44]}  O-O {[%clk 0:02:35]} 11. Ng3 {[%clk 0:02:41]}  d5 {[%clk 0:02:24]} 12. Bb3 {[%clk 0:02:40]}  e5 {[%clk 0:01:58]} 13. d4 {[%clk 0:02:34]}  Rad8 {[%clk 0:01:46]} 14. h3 {[%clk 0:02:32]}  Be6 {[%clk 0:01:46]} 15. Rfe1 {[%clk 0:02:26]}  Qc7 {[%clk 0:01:42]} 16. dxe5 {[%clk 0:02:12]}  Nxe5 {[%clk 0:01:42]} 17. Qf4 {[%clk 0:02:10]}  d4 {[%clk 0:01:41]} 18. Qxe5 {[%clk 0:02:05]}  Qxe5 {[%clk 0:01:41]} 19. Rxe5 {[%clk 0:02:04]}  dxc3 {[%clk 0:01:41]} 20. bxc3 {[%clk 0:02:04]}  Nd7 {[%clk 0:01:41]} 21. Rb5 {[%clk 0:02:00]}  b6 {[%clk 0:01:38]} 22. Bxe6 {[%clk 0:01:55]}  fxe6 {[%clk 0:01:39]} 23. Ne4 {[%clk 0:01:54]}  Rc8 {[%clk 0:01:34]} 24. a4 {[%clk 0:01:52]}  Rf5 {[%clk 0:01:13]} 25. Nd6 {[%clk 0:01:36]}  Rxb5 {[%clk 0:01:13]} 26. axb5 {[%clk 0:01:35]}  Rc7 {[%clk 0:01:13]} 27. c4 {[%clk 0:01:33]}  Ne5 {[%clk 0:01:08]} 28. c5 {[%clk 0:01:20]}  Rxc5 {[%clk 0:00:59]} 29. Rxa7 {[%clk 0:01:18]}  h6 {[%clk 0:00:59]} 30. Ra8+ {[%clk 0:01:13]}  Kh7 {[%clk 0:00:59]} 31. Rb8 {[%clk 0:01:11]}  Rxc2 {[%clk 0:00:35]} 32. Rxb6 {[%clk 0:01:09]}  Nd3 {[%clk 0:00:35]} 33. Ne4 {[%clk 0:01:07]}  Nf4 {[%clk 0:00:31]} 34. g3 {[%clk 0:00:58]}  Ne2+ {[%clk 0:00:13]} 35. Kg2 {[%clk 0:00:55]}  Nd4 {[%clk 0:00:13]} 36. Rb7 {[%clk 0:00:44]}  Re2 {[%clk 0:00:12]} 37. Nf6+ {[%clk 0:00:41]}  Kg6 {[%clk 0:00:12]} 38. Ne8 {[%clk 0:00:40]}  Nf5 {[%clk 0:00:10]} 39. b6 {[%clk 0:00:39]}  Rb2 {[%clk 0:00:09]} 40. g4 {[%clk 0:00:31]}  Nh4+ {[%clk 0:00:03]} 41. Kg3 {[%clk 0:00:30]}  Kg5 {[%clk 0:00:03]} 42. Rxg7+ {[%clk 0:00:29]}  Ng6 {[%clk 0:00:04]} 43. h4# {[%clk 0:00:28]} 1-0


[Site "https://www.chess.com"]

[Event "Titled Tuesday Blitz September 20 Late 2022"]
[White "Atanasov, Anthony"]
[Black "Cukrowski, Filip"]
[WhiteFideId "2623897"]
[BlackFideId "1171097"]
[WhiteElo "1933"]
[BlackElo "2093"]
[Result "1-0"]
[Round "04"]
[TimeControl "180+1"]
[Date "2022.09.20"]
[WhiteClock "0:00:02"]
[BlackClock "0:00:20"]

1. Nf3 {[%clk 0:03:00]}  c5 {[%clk 0:02:56]} 2. e4 {[%clk 0:03:00]}  Nc6 {[%clk 0:02:55]} 3. d4 {[%clk 0:03:00]}  cxd4 {[%clk 0:02:55]} 4. Nxd4 {[%clk 0:03:01]}  e5 {[%clk 0:02:52]} 5. Nb5 {[%clk 0:02:55]}  a6 {[%clk 0:02:48]} 6. Nd6+ {[%clk 0:02:42]}  Bxd6 {[%clk 0:02:47]} 7. Qxd6 {[%clk 0:02:43]}  Qf6 {[%clk 0:02:47]} 8. Qd1 {[%clk 0:02:30]}  d6 {[%clk 0:02:43]} 9. Be3 {[%clk 0:02:29]}  Nge7 {[%clk 0:02:40]} 10. c4 {[%clk 0:02:29]}  O-O {[%clk 0:02:36]} 11. Nc3 {[%clk 0:02:29]}  Nd4 {[%clk 0:02:33]} 12. Bd3 {[%clk 0:02:16]}  Be6 {[%clk 0:02:32]} 13. O-O {[%clk 0:02:10]}  Rac8 {[%clk 0:02:32]} 14. Rc1 {[%clk 0:01:34]}  Qg6 {[%clk 0:02:12]} 15. Bxd4 {[%clk 0:00:37]}  exd4 {[%clk 0:02:06]} 16. e5 {[%clk 0:00:37]}  Bf5 {[%clk 0:02:01]} 17. exd6 {[%clk 0:00:12]}  Bxd3 {[%clk 0:01:54]} 18. dxe7 {[%clk 0:00:12]}  Rfe8 {[%clk 0:01:51]} 19. Ne2 {[%clk 0:00:05]}  Bxc4 {[%clk 0:01:20]} 20. Qxd4 {[%clk 0:00:05]}  Be6 {[%clk 0:00:20]} 21. Rxc8 {[%clk 0:00:05]}  Bxc8 {[%clk 0:00:20]} 22. Qd8 {[%clk 0:00:06]}  Qc6 {[%clk 0:00:20]} 23. Rc1 {[%clk 0:00:06]}  Qd7 {[%clk 0:00:19]} 24. Rd1 {[%clk 0:00:02]}  Qc6 {[%clk 0:00:18]} 25. Qxe8+ {[%clk 0:00:02]}  Qxe8 {[%clk 0:00:18]} 26. Rd8 {[%clk 0:00:02]}  Bd7 {[%clk 0:00:19]} 27. f4 {[%clk 0:00:02]}  f6 {[%clk 0:00:19]} 28. Rxe8+ {[%clk 0:00:02]}  Bxe8 {[%clk 0:00:19]} 29. Nd4 {[%clk 0:00:02]}  Kf7 {[%clk 0:00:20]} 30. Nf5 {[%clk 0:00:02]}  Bd7 {[%clk 0:00:20]} 31. Nd6+ {[%clk 0:00:02]}  Kxe7 {[%clk 0:00:20]} 32. Nxb7 {[%clk 0:00:03]}  Bb5 {[%clk 0:00:21]} 33. Nc5 {[%clk 0:00:02]}  Kd6 {[%clk 0:00:21]} 34. Nb3 {[%clk 0:00:02]}  Kd5 {[%clk 0:00:20]} 35. Kf2 {[%clk 0:00:03]}  Ke4 {[%clk 0:00:20]} 36. g3 {[%clk 0:00:02]}  Kd3 {[%clk 0:00:21]} 37. a4 {[%clk 0:00:02]}  Bc4 {[%clk 0:00:21]} 38. Nc5+ {[%clk 0:00:02]}  Kc2 {[%clk 0:00:21]} 39. b4 {[%clk 0:00:01]}  Kc3 {[%clk 0:00:20]} 40. b5 {[%clk 0:00:01]}  axb5 {[%clk 0:00:21]} 41. axb5 {[%clk 0:00:01]}  Bxb5 {[%clk 0:00:21]} 42. Ne6 {[%clk 0:00:01]}  g6 {[%clk 0:00:21]} 43. Nf8 {[%clk 0:00:02]}  Bd3 {[%clk 0:00:20]} 44. Nxh7 {[%clk 0:00:02]}  f5 {[%clk 0:00:20]} 45. Nf8 {[%clk 0:00:02]}  Kd4 {[%clk 0:00:19]} 46. Nxg6 {[%clk 0:00:02]}  Kd5 {[%clk 0:00:19]} 47. Nh4 {[%clk 0:00:03]}  Ke6 {[%clk 0:00:19]} 48. Ng2 {[%clk 0:00:03]}  Be4 {[%clk 0:00:20]} 49. Ne3 {[%clk 0:00:03]}  Kf6 {[%clk 0:00:20]} 50. Ke2 {[%clk 0:00:02]}  Kg6 {[%clk 0:00:21]} 51. Kf2 {[%clk 0:00:02]}  Bc6 {[%clk 0:00:20]} 52. h3 {[%clk 0:00:03]}  Be4 {[%clk 0:00:21]} 53. Kg1 {[%clk 0:00:03]}  Kh5 {[%clk 0:00:21]} 54. Kf2 {[%clk 0:00:02]}  Kg6 {[%clk 0:00:21]} 55. g4 {[%clk 0:00:02]}  Kf6 {[%clk 0:00:21]} 56. gxf5 {[%clk 0:00:01]}  Bd3 {[%clk 0:00:21]} 57. Kg3 {[%clk 0:00:01]}  Be2 {[%clk 0:00:20]} 58. h4 {[%clk 0:00:01]}  Ba6 {[%clk 0:00:18]} 59. Kg4 {[%clk 0:00:01]}  Be2+ {[%clk 0:00:18]} 60. Kg3 {[%clk 0:00:02]}  Bd3 {[%clk 0:00:18]} 61. h5 {[%clk 0:00:02]}  Be2 {[%clk 0:00:18]} 62. Kh4 {[%clk 0:00:02]}  Kg7 {[%clk 0:00:17]} 63. Kg5 {[%clk 0:00:02]}  Kf7 {[%clk 0:00:17]} 64. f6 {[%clk 0:00:03]}  Bd3 {[%clk 0:00:17]} 65. h6 {[%clk 0:00:02]}  Bh7 {[%clk 0:00:17]} 66. f5 {[%clk 0:00:03]}  Bg8 {[%clk 0:00:17]} 67. Ng4 {[%clk 0:00:02]}  Bh7 {[%clk 0:00:17]} 68. Ne5+ {[%clk 0:00:02]}  Kf8 {[%clk 0:00:17]} 69. Kf4 {[%clk 0:00:02]}  Kg8 {[%clk 0:00:17]} 70. Ke4 {[%clk 0:00:02]}  Kf8 {[%clk 0:00:18]} 71. Ng6+ {[%clk 0:00:01]}  Kf7 {[%clk 0:00:18]} 72. Ke5 {[%clk 0:00:02]}  Bg8 {[%clk 0:00:18]} 73. Ne7 {[%clk 0:00:01]}  Bh7 {[%clk 0:00:18]} 74. Nd5 {[%clk 0:00:02]}  Bg8 {[%clk 0:00:19]} 75. Ne3 {[%clk 0:00:03]}  Bh7 {[%clk 0:00:19]} 76. Ng2 {[%clk 0:00:03]}  Bg8 {[%clk 0:00:19]} 77. Nf4 {[%clk 0:00:04]}  Bh7 {[%clk 0:00:20]} 78. Nd5 {[%clk 0:00:05]}  Bg8 {[%clk 0:00:20]} 79. Kf4 {[%clk 0:00:05]}  Bh7 {[%clk 0:00:20]} 80. Kg4 {[%clk 0:00:05]}  Bg8 {[%clk 0:00:20]} 81. Kg5 {[%clk 0:00:06]}  Bh7 {[%clk 0:00:21]} 82. Ne7 {[%clk 0:00:06]}  Kf8 {[%clk 0:00:20]} 83. Nc6 {[%clk 0:00:05]}  Kf7 {[%clk 0:00:21]} 84. Ne5+ {[%clk 0:00:04]}  Kf8 {[%clk 0:00:21]} 85. f7 {[%clk 0:00:04]}  Ke7 {[%clk 0:00:20]} 86. f8=Q+ {[%clk 0:00:02]}  Kxf8 {[%clk 0:00:20]} 87. Kf6 {[%clk 0:00:03]}  Bg8 {[%clk 0:00:20]} 88. Ng6+ {[%clk 0:00:02]}  Ke8 {[%clk 0:00:20]} 89. Kg7 {[%clk 0:00:02]} 1-0


[Site "https://www.chess.com"]

[Event "Titled Tuesday Blitz September 20 Late 2022"]
[White "Czernek, Tymon"]
[Black "Yanchenko, Roman"]
[WhiteFideId "1199510"]
[BlackFideId "4137329"]
[WhiteElo "2007"]
[BlackElo "2514"]
[Result "0-1"]
[Round "04"]
[TimeControl "180+1"]
[Date "2022.09.20"]
[WhiteClock "0:00:10"]
[BlackClock "0:00:17"]

1. e4 {[%clk 0:03:00]}  e6 {[%clk 0:02:52]} 2. d4 {[%clk 0:03:00]}  d5 {[%clk 0:02:52]} 3. Nc3 {[%clk 0:03:00]}  Bb4 {[%clk 0:02:52]} 4. e5 {[%clk 0:03:00]}  Ne7 {[%clk 0:02:51]} 5. a3 {[%clk 0:02:57]}  Bxc3+ {[%clk 0:02:51]} 6. bxc3 {[%clk 0:02:57]}  b6 {[%clk 0:02:48]} 7. Qg4 {[%clk 0:02:58]}  Kf8 {[%clk 0:02:45]} 8. Nf3 {[%clk 0:02:57]}  Ba6 {[%clk 0:02:45]} 9. Bxa6 {[%clk 0:02:55]}  Nxa6 {[%clk 0:02:45]} 10. h4 {[%clk 0:02:56]}  c5 {[%clk 0:02:43]} 11. h5 {[%clk 0:02:53]}  h6 {[%clk 0:02:42]} 12. Qf4 {[%clk 0:02:49]}  Rc8 {[%clk 0:02:37]} 13. Bd2 {[%clk 0:02:41]}  Kg8 {[%clk 0:02:34]} 14. g4 {[%clk 0:02:38]}  cxd4 {[%clk 0:02:25]} 15. Nxd4 {[%clk 0:02:29]}  Rc4 {[%clk 0:02:22]} 16. f3 {[%clk 0:02:14]}  Nb8 {[%clk 0:02:10]} 17. Qe3 {[%clk 0:02:12]}  Nbc6 {[%clk 0:02:07]} 18. Nb5 {[%clk 0:02:11]}  Rc5 {[%clk 0:02:00]} 19. Nd6 {[%clk 0:02:04]}  Qc7 {[%clk 0:01:47]} 20. g5 {[%clk 0:01:52]}  Nc8 {[%clk 0:00:57]} 21. gxh6 {[%clk 0:01:17]}  Nxd6 {[%clk 0:00:56]} 22. hxg7 {[%clk 0:00:57]}  Rh7 {[%clk 0:00:55]} 23. exd6 {[%clk 0:00:57]}  Qxd6 {[%clk 0:00:56]} 24. h6 {[%clk 0:00:57]}  d4 {[%clk 0:00:55]} 25. cxd4 {[%clk 0:00:55]}  Nxd4 {[%clk 0:00:56]} 26. Kd1 {[%clk 0:00:20]}  Rd5 {[%clk 0:00:44]} 27. c4 {[%clk 0:00:15]}  Nf5 {[%clk 0:00:38]} 28. Qc3 {[%clk 0:00:14]}  Rd3 {[%clk 0:00:35]} 29. Qb4 {[%clk 0:00:15]}  Rxh6 {[%clk 0:00:21]} 30. Rxh6 {[%clk 0:00:13]}  Nxh6 {[%clk 0:00:21]} 31. Ke2 {[%clk 0:00:05]}  Nf5 {[%clk 0:00:16]} 32. Qxd6 {[%clk 0:00:04]}  Rxd6 {[%clk 0:00:15]} 33. Bc3 {[%clk 0:00:05]}  e5 {[%clk 0:00:12]} 34. Rd1 {[%clk 0:00:05]}  Rxd1 {[%clk 0:00:12]} 35. Kxd1 {[%clk 0:00:06]}  f6 {[%clk 0:00:13]} 36. Ke2 {[%clk 0:00:06]}  Kxg7 {[%clk 0:00:13]} 37. Kd3 {[%clk 0:00:07]}  Kf7 {[%clk 0:00:13]} 38. Ke4 {[%clk 0:00:08]}  Ke6 {[%clk 0:00:14]} 39. f4 {[%clk 0:00:09]}  Nd6+ {[%clk 0:00:15]} 40. Kf3 {[%clk 0:00:09]}  Nxc4 {[%clk 0:00:15]} 41. fxe5 {[%clk 0:00:09]}  fxe5 {[%clk 0:00:16]} 42. Ke4 {[%clk 0:00:10]}  Nd6+ {[%clk 0:00:16]} 43. Ke3 {[%clk 0:00:10]}  Kd5 {[%clk 0:00:17]} 44. Kd3 {[%clk 0:00:10]}  e4+ {[%clk 0:00:16]} 45. Ke3 {[%clk 0:00:10]}  Nc4+ {[%clk 0:00:17]} 0-1


[Site "https://www.chess.com"]

[Event "Titled Tuesday Blitz September 20 Late 2022"]
[White "Gurevich, Dmitry"]
[Black "Mahdavi, Reza"]
[WhiteFideId "2000407"]
[BlackFideId "12595926"]
[WhiteElo "2506"]
[BlackElo "2240"]
[Result "0-1"]
[Round "04"]
[TimeControl "180+1"]
[Date "2022.09.20"]
[WhiteClock "0:00:24"]
[BlackClock "0:00:51"]

1. d4 {[%clk 0:02:52]}  g6 {[%clk 0:02:58]} 2. c4 {[%clk 0:02:51]}  Bg7 {[%clk 0:02:59]} 3. e4 {[%clk 0:02:51]}  d6 {[%clk 0:03:00]} 4. Nc3 {[%clk 0:02:50]}  Nc6 {[%clk 0:03:00]} 5. Nge2 {[%clk 0:02:48]}  e5 {[%clk 0:03:01]} 6. Be3 {[%clk 0:02:45]}  f5 {[%clk 0:03:00]} 7. d5 {[%clk 0:02:41]}  Nce7 {[%clk 0:02:47]} 8. f3 {[%clk 0:02:39]}  Nf6 {[%clk 0:02:38]} 9. h3 {[%clk 0:02:29]}  O-O {[%clk 0:02:38]} 10. Qd2 {[%clk 0:02:29]}  c6 {[%clk 0:02:35]} 11. g4 {[%clk 0:02:19]}  cxd5 {[%clk 0:02:32]} 12. cxd5 {[%clk 0:02:18]}  b5 {[%clk 0:02:31]} 13. a3 {[%clk 0:02:13]}  a5 {[%clk 0:02:22]} 14. g5 {[%clk 0:02:04]}  Nh5 {[%clk 0:02:20]} 15. Nxb5 {[%clk 0:02:03]}  fxe4 {[%clk 0:02:00]} 16. fxe4 {[%clk 0:02:02]}  Ba6 {[%clk 0:01:58]} 17. a4 {[%clk 0:01:59]}  Qd7 {[%clk 0:01:51]} 18. Rc1 {[%clk 0:01:50]}  Bxb5 {[%clk 0:01:46]} 19. axb5 {[%clk 0:01:50]}  Qxb5 {[%clk 0:01:47]} 20. Ng3 {[%clk 0:01:45]}  Qa4 {[%clk 0:01:37]} 21. Nxh5 {[%clk 0:01:34]}  Qxe4 {[%clk 0:01:24]} 22. Ng3 {[%clk 0:01:28]}  Qh4 {[%clk 0:01:24]} 23. Bf2 {[%clk 0:01:20]}  Rxf2 {[%clk 0:01:14]} 24. Qxf2 {[%clk 0:01:19]}  Rf8 {[%clk 0:01:14]} 25. Qg2 {[%clk 0:01:11]}  Nf5 {[%clk 0:01:07]} 26. Rg1 {[%clk 0:01:09]}  Qxg5 {[%clk 0:01:04]} 27. Rd1 {[%clk 0:00:30]}  Qe3+ {[%clk 0:00:52]} 28. Be2 {[%clk 0:00:24]}  Nh4 {[%clk 0:00:51]} 0-1


[Site "https://www.chess.com"]